fUST/lending_fUST_20251029
["ID","MTS","AMOUNT","RATE_DAILY","PERIOD"]
[392578729,1761684651916,-1049.87,0.00023561,2]
[392578730,1761684651926,-500.0,0.00023561,2]
[392578731,1761684651936,-500.0,0.00023561,2]
[392578732,1761684651945,-500.0,0.00023561,2]
[392578733,1761684651954,-1006.51,0.00023561,2]
[392578734,1761684651963,-812.22,0.00023561,2]
[392578735,1761684651973,-500.0,0.00023561,2]
[392578736,1761684651982,-500.0,0.00023561,2]
[392578737,1761684651991,-591.11,0.00023561,2]
[392578738,1761684652000,-500.0,0.00023561,2]
[392578739,1761684652011,-500.0,0.00023561,2]
[392578740,1761684652020,-1144.75,0.00023561,2]
[392578741,1761684652029,-500.0,0.00023561,2]
[392578742,1761684652038,-677.49,0.00023561,2]
[392578743,1761684652048,-500.0,0.00023561,2]
[392578744,1761684652057,-878.79,0.00023561,2]
[392578745,1761684652066,-554.59,0.00023561,2]
[392578746,1761684652075,-826.78,0.00023561,2]
[392578747,1761684652084,-775.41,0.00023561,2]
[392578748,1761684652093,-500.0,0.00023561,2]
[392578749,1761684652102,-1677.72,0.00023561,2]
[392578750,1761684652111,-511.98,0.00023561,2]
[392578751,1761684652120,-500.0,0.00023561,2]
[392578752,1761684652130,-500.0,0.00023561,2]
[392578753,1761684652139,-957.05,0.00023561,2]
[392578754,1761684652199,-500.0,0.00023561,2]
[392578755,1761684652209,-500.0,0.00023561,2]
[392578756,1761684652219,-500.0,0.00023561,2]
[392578757,1761684652229,-500.0,0.00023561,2]
[392578758,1761684652239,-751.61,0.00023561,2]
[392578759,1761684652249,-623.02,0.00023561,2]
[392578760,1761684652258,-984.99,0.00023561,2]
[392578761,1761684652268,-762.88,0.00023561,2]
[392578762,1761684652278,-500.0,0.00023561,2]
[392578763,1761684652287,-755.56,0.00023561,2]
[392578764,1761684652297,-500.0,0.00023561,2]
[392578765,1761684652306,-640.15,0.00023561,2]
[392578766,1761684652315,-500.0,0.00023561,2]
[392578767,1761684652324,-500.0,0.00023561,2]
[392578768,1761684652333,-1050.98,0.00023561,2]
[392578769,1761684652342,-500.0,0.00023561,2]
[392578770,1761684652352,-685.53,0.00023561,2]
[392578771,1761684652361,-696.01,0.00023561,2]
[392578772,1761684652371,-3716.26,0.00023561,2]
[392578773,1761684652380,-500.0,0.00023561,2]
[392578774,1761684652390,-500.0,0.00023561,2]
[392578775,1761684652399,-500.0,0.00023561,2]
[392578776,1761684652409,-786.96,0.00023561,2]
[392578777,1761684652421,-1465.23,0.00023561,2]
[392578778,1761684652431,-500.0,0.00023561,2]
[392578779,1761684652441,-500.0,0.00023561,2]
[392578780,1761684652450,-500.0,0.00023561,2]
[392578781,1761684652460,-403.83312252,0.00023561,2]
[392578782,1761684652487,-96.16687748,0.00023561,2]
[392578783,1761684652499,-477.85586979,0.00023561,2]
[392578784,1761684652512,-50.54413021,0.00023561,2]
[392578785,1761684652524,-500.0,0.00023561,2]
[392578786,1761684652533,-159.62966981,0.00023561,2]
[392578787,1761684652640,-4184.97200669,0.00021807,10]
[392578788,1761684652653,-27032.64799331,0.00021807,10]
[392578789,1761684652663,-297.96781547,0.00023561,2]
[392578790,1761684652672,-891.88,0.00023561,2]
[392578791,1761684652681,-2371.14,0.00023561,2]
[392578792,1761684652691,-598.51,0.00023561,2]
[392578793,1761684652700,-500.0,0.00023561,2]
[392578794,1761684652709,-741.68,0.00023561,2]
[392578795,1761684652718,-500.0,0.00023561,2]
[392578796,1761684652728,-500.0,0.00023561,2]
[392578797,1761684652738,-500.0,0.00023561,2]
[392578798,1761684652747,-500.0,0.00023561,2]
[392578799,1761684652757,-1289.61,0.00023561,2]
[392578800,1761684652766,-584.89,0.00023561,2]
[392578801,1761684652776,-500.0,0.00023561,2]
[392578802,1761684652785,-500.0,0.00023561,2]
[392578803,1761684652795,-500.0,0.00023561,2]
[392578804,1761684652804,-960.71,0.00023561,2]
[392578805,1761684652814,-642.85,0.00023561,2]
[392578806,1761684652823,-500.0,0.00023561,2]
[392578807,1761684652833,-1384.85,0.00023561,2]
[392578808,1761684652842,-1494.95,0.00023561,2]
[392578809,1761684652851,-526.78,0.00023561,2]
[392578810,1761684652861,-921.96,0.00023561,2]
[392578811,1761684652870,-830.95,0.00023561,2]
[392578812,1761684652879,-500.0,0.00023561,2]
[392578813,1761684652888,-1687.31,0.00023561,2]
[392578814,1761684652897,-500.0,0.00023561,2]
[392578815,1761684652907,-953.15,0.00023561,2]
[392578816,1761684652917,-2031.7,0.00023561,2]
[392578817,1761684652926,-746.41,0.00023561,2]
[392578818,1761684652935,-1324.25,0.00023561,2]
[392578819,1761684652944,-500.0,0.00023561,2]
[392578820,1761684652953,-920.67,0.00023561,2]
[392578821,1761684652962,-1110.59,0.00023561,2]
[392578822,1761684652972,-500.0,0.00023561,2]
[392578823,1761684652981,-500.0,0.00023561,2]
[392578824,1761684652990,-500.0,0.00023561,2]
[392578825,1761684653000,-996.9,0.00023561,2]
[392578826,1761684653009,-1509.24,0.00023561,2]
[392578827,1761684653019,-555.99,0.00023561,2]
[392578828,1761684653029,-500.0,0.00023561,2]
[392578829,1761684653038,-1004.61,0.00023561,2]
[392578830,1761684653048,-669.33,0.00023561,2]
[392578831,1761684653057,-500.0,0.00023561,2]
[392578832,1761684653066,-597.66,0.00023561,2]
[392578833,1761684653076,-522.76,0.00023561,2]
[392578834,1761684653086,-668.12,0.00023561,2]
[392578835,1761684653095,-500.0,0.00023561,2]
[392578836,1761684653104,-500.0,0.00023561,2]
[392578837,1761684653113,-966.05,0.00023561,2]
[392578838,1761684653122,-500.0,0.00023573,2]
[392578839,1761684653133,-1000.0,0.00023579,20]
[392578840,1761684653142,-33001.21,0.000236,7]
[392578841,1761684653151,-423.15978777,0.00023603,2]
[392578842,1761684653162,-260.0,0.00023608,2]
[392578843,1761684653171,-2000.0,0.00023616,2]
[392578844,1761684653181,-1500.0,0.00023616,2]
[392578845,1761684653190,-2000.0,0.00023616,2]
[392578846,1761684653199,-2000.0,0.00023616,2]
[392578847,1761684653208,-1500.0,0.00023616,2]
[392578848,1761684653217,-2000.0,0.00023616,2]
[392578849,1761684653227,-700.0,0.00023645,2]
[392578850,1761684653236,-700.0,0.00023658,2]
[392578851,1761684653245,-274.86700707,0.0002366,2]
[392578852,1761684653254,-168.0,0.00023662,2]
[392578853,1761684653263,-1835.27,0.0002371,2]
[392578854,1761684653272,-379.52089339,0.00023748,2]
[392578855,1761684653282,-490.92320092,0.00023748,2]
[392578856,1761684653291,-1000.0,0.00023748,2]
[392578857,1761684653306,-1000.0,0.00023748,2]
[392578858,1761684653315,-654.75692793,0.00023748,2]
[392578859,1761684653325,-1000.0,0.00023748,2]
[392578860,1761684653334,-1000.0,0.00023748,2]
[392578861,1761684653343,-1000.0,0.00023748,2]
[392578862,1761684653353,-1000.0,0.00023748,2]
[392578863,1761684653364,-1000.0,0.00023748,2]
[392578864,1761684653374,-1000.0,0.00023748,2]
[392578865,1761684653383,-1000.0,0.00023748,2]
[392578866,1761684653393,-1000.0,0.00023748,2]
[392578867,1761684653402,-1000.0,0.00023748,2]
[392578868,1761684653412,-403.6515735,0.000238,7]
[392578869,1761684653421,-306.0,0.00023808,11]
[392578870,1761684653431,-540.46,0.00023835,2]
[392578871,1761684653443,-500.0,0.00023835,2]
[392578872,1761684653453,-500.0,0.00023835,2]
[392578873,1761684653463,-500.0,0.00023835,2]
[392578874,1761684653473,-500.0,0.00023835,2]
[392578875,1761684653483,-575.48,0.00023835,2]
[392578876,1761684653492,-500.0,0.00023835,2]
[392578877,1761684653502,-500.0,0.00023835,2]
[392578878,1761684653513,-500.0,0.00023835,2]
[392578879,1761684653525,-500.0,0.00023835,2]
[392578880,1761684653534,-500.0,0.00023835,2]
[392578881,1761684653551,-500.0,0.00023835,2]
[392578882,1761684653561,-500.0,0.00023835,2]
[392578883,1761684653570,-500.0,0.00023835,2]
[392578884,1761684653581,-500.0,0.00023835,2]
[392578885,1761684653590,-500.0,0.00023835,2]
[392578886,1761684653602,-594.14,0.00023835,2]
[392578887,1761684653612,-500.0,0.00023835,2]
[392578888,1761684653622,-500.0,0.00023835,2]
[392578889,1761684653631,-500.0,0.00023835,2]
[392578890,1761684653641,-648.27,0.00023835,2]
[392578891,1761684653650,-2433.62,0.00023835,2]
[392578892,1761684653659,-500.0,0.00023835,2]
[392578893,1761684653669,-293.25577348,0.00023835,2]
[392578894,1761684653679,-500.0,0.00023835,2]
[392578895,1761684653689,-500.0,0.00023835,2]
[392578896,1761684653698,-500.0,0.00023835,2]
[392578897,1761684653707,-500.0,0.00023835,2]
[392578898,1761684653716,-500.0,0.00023835,2]
[392578899,1761684653725,-240.66111705,0.00023835,2]
[392578900,1761684653735,-412.27640346,0.00023835,2]
[392578901,1761684653744,-500.0,0.00023835,2]
[392578902,1761684653753,-500.0,0.00023835,2]
[392578903,1761684653763,-500.0,0.00023835,2]
[392578904,1761684653772,-500.0,0.00023835,2]
[392578905,1761684653782,-500.0,0.00023835,2]
[392578906,1761684653791,-500.0,0.00023835,2]
[392578907,1761684653800,-380.98285763,0.00023835,2]
[392578908,1761684653809,-940.28,0.00023835,2]
[392578909,1761684653818,-500.0,0.00023835,2]
[392578910,1761684653828,-500.0,0.00023835,2]
[392578911,1761684653837,-580.44,0.00023835,2]
[392578912,1761684653846,-500.0,0.00023835,2]
[392578913,1761684653855,-500.0,0.00023835,2]
[392578914,1761684653865,-500.0,0.00023835,2]
[392578915,1761684653874,-500.0,0.00023835,2]
[392578916,1761684653884,-500.0,0.00023835,2]
[392578917,1761684653894,-574.63636146,0.00023835,2]
[392578918,1761684653903,-500.0,0.00023835,2]
[392578919,1761684653914,-500.0,0.00023835,2]
[392578920,1761684653923,-728.95,0.00023835,2]
[392578921,1761684653933,-500.0,0.00023835,2]
[392578922,1761684653943,-500.0,0.00023835,2]
[392578923,1761684653953,-500.0,0.00023835,2]
[392578924,1761684653964,-497.19684799,0.00023835,2]
[392578925,1761684653973,-500.0,0.00023835,2]
[392578926,1761684653982,-500.0,0.00023835,2]
[392578927,1761684653992,-500.0,0.00023835,2]
[392578928,1761684654002,-500.0,0.00023835,2]
[392578929,1761684654011,-557.52,0.00023835,2]
[392578930,1761684654020,-500.0,0.00023835,2]
[392578931,1761684654029,-502.08,0.00023835,2]
[392578932,1761684654039,-500.0,0.00023835,2]
[392578933,1761684654048,-500.0,0.00023835,2]
[392578934,1761684654057,-500.0,0.00023835,2]
[392578935,1761684654066,-500.0,0.00023835,2]
[392578936,1761684654076,-500.0,0.00023835,2]
[392578937,1761684654085,-500.0,0.00023835,2]
[392578938,1761684654095,-628.01,0.00023835,2]
[392578939,1761684654103,-793.46,0.00023835,2]
[392578940,1761684654112,-500.0,0.00023835,2]
[392578941,1761684654122,-500.0,0.00023835,2]
[392578942,1761684654131,-667.98,0.00023835,2]
[392578943,1761684654140,-896.12,0.00023835,2]
[392578944,1761684654149,-500.0,0.00023835,2]
[392578945,1761684654158,-500.0,0.00023835,2]
[392578946,1761684654169,-500.0,0.00023835,2]
[392578947,1761684654179,-641.32401464,0.00023835,2]
[392578948,1761684654188,-515.05,0.00023835,2]
[392578949,1761684654199,-500.0,0.00023835,2]
[392578950,1761684654208,-312.85853062,0.00023835,2]
[392578951,1761684654217,-536.02,0.00023835,2]
[392578952,1761684654227,-513.34,0.00023835,2]
[392578953,1761684654236,-418.0631717,0.00023835,2]
[392578954,1761684654245,-500.0,0.00023835,2]
[392578955,1761684654254,-500.0,0.00023835,2]
[392578956,1761684654263,-500.0,0.00023835,2]
[392578957,1761684654272,-500.0,0.00023835,2]
[392578958,1761684654283,-533.39521788,0.00023835,2]
[392578959,1761684654292,-186.32140526,0.00023835,2]
[392578960,1761684654302,-500.0,0.00023835,2]
[392578961,1761684654312,-500.0,0.00023835,2]
[392578962,1761684654321,-500.0,0.00023835,2]
[392578963,1761684654330,-500.0,0.00023835,2]
[392578964,1761684654340,-624.67,0.00023835,2]
[392578965,1761684654350,-500.0,0.00023835,2]
[392578966,1761684654359,-854.24,0.00023835,2]
[392578967,1761684654369,-500.0,0.00023835,2]
[392578968,1761684654378,-995.13,0.00023835,2]
[392578969,1761684654387,-2418.13,0.00023835,2]
[392578970,1761684654396,-500.0,0.00023835,2]
[392578971,1761684654406,-500.0,0.00023835,2]
[392578972,1761684654415,-500.0,0.00023835,2]
[392578973,1761684654424,-500.0,0.00023835,2]
[392578974,1761684654434,-9442.78,0.00023835,2]
[392578975,1761684654443,-726.0,0.00023835,2]
[392578976,1761684654452,-509.83,0.00023835,2]
[392578977,1761684654461,-696.15,0.00023835,2]
[392578978,1761684654470,-1049.87,0.00023835,2]
[392578979,1761684654480,-500.0,0.00023835,2]
[392578980,1761684654489,-500.0,0.00023835,2]
[392578981,1761684654499,-500.0,0.00023835,2]
[392578982,1761684654510,-1006.51,0.00023835,2]
[392578983,1761684654521,-812.22,0.00023835,2]
[392578984,1761684654530,-500.0,0.00023835,2]
[392578985,1761684654539,-558.85580673,0.00023835,2]
[392578986,1761684654548,-591.11,0.00023835,2]
[392578987,1761684654558,-500.0,0.00023835,2]
[392578988,1761684654567,-500.0,0.00023835,2]
[392578989,1761684654576,-1144.75,0.00023835,2]
[392578990,1761684654587,-500.0,0.00023835,2]
[392578991,1761684654596,-677.49,0.00023835,2]
[392578992,1761684654605,-500.0,0.00023835,2]
[392578993,1761684654614,-878.79,0.00023835,2]
[392578994,1761684654623,-554.59,0.00023835,2]
[392578995,1761684654632,-826.78,0.00023835,2]
[392578996,1761684654641,-775.41,0.00023835,2]
[392578997,1761684654650,-500.0,0.00023835,2]
[392578998,1761684654660,-1677.72,0.00023835,2]
[392578999,1761684654671,-511.98,0.00023835,2]
[392579000,1761684654680,-500.0,0.00023835,2]
[392579001,1761684654689,-500.0,0.00023835,2]
[392579002,1761684654699,-957.05,0.00023835,2]
[392579003,1761684654709,-251.38716813,0.00023835,2]
[392579004,1761684654718,-500.0,0.00023835,2]
[392579005,1761684654727,-500.0,0.00023835,2]
[392579006,1761684654736,-500.0,0.00023835,2]
[392579007,1761684654746,-751.61,0.00023835,2]
[392579008,1761684654757,-623.02,0.00023835,2]
[392579009,1761684654767,-984.99,0.00023835,2]
[392579010,1761684654777,-762.88,0.00023835,2]
[392579011,1761684654786,-500.0,0.00023835,2]
[392579012,1761684654796,-755.56,0.00023835,2]
[392579013,1761684654805,-500.0,0.00023835,2]
[392579014,1761684654818,-640.15,0.00023835,2]
[392579015,1761684654828,-500.0,0.00023835,2]
[392579016,1761684654838,-804.68012461,0.00023835,2]
[392579017,1761684654993,-246.29987539,0.00023835,2]
[392579018,1761684655004,-500.0,0.00023835,2]
[392579019,1761684655015,-500.0,0.00023835,2]
[392579020,1761684655024,-685.53,0.00023835,2]
[392579021,1761684655034,-696.01,0.00023835,2]
[392579022,1761684655044,-3716.26,0.00023835,2]
[392579023,1761684655054,-500.0,0.00023835,2]
[392579024,1761684655063,-500.0,0.00023835,2]
[392579025,1761684655073,-500.0,0.00023835,2]
[392579026,1761684655082,-786.96,0.00023835,2]
[392579027,1761684655091,-1465.23,0.00023835,2]
[392579028,1761684655101,-500.0,0.00023835,2]
[392579029,1761684655110,-500.0,0.00023835,2]
[392579030,1761684655119,-500.0,0.00023835,2]
[392579031,1761684655128,-500.0,0.00023835,2]
[392579032,1761684655137,-528.4,0.00023835,2]
[392579033,1761684655147,-500.0,0.00023835,2]
[392579034,1761684655157,-891.88,0.00023835,2]
[392579035,1761684655167,-2371.14,0.00023835,2]
[392579036,1761684655176,-598.51,0.00023835,2]
[392579037,1761684655186,-500.0,0.00023835,2]
[392579038,1761684655195,-741.68,0.00023835,2]
[392579039,1761684655204,-500.0,0.00023835,2]
[392579040,1761684655213,-500.0,0.00023835,2]
[392579041,1761684655222,-500.0,0.00023835,2]
[392579042,1761684655231,-500.0,0.00023835,2]
[392579043,1761684655240,-1289.61,0.00023835,2]
[392579044,1761684655250,-500.0,0.00023835,2]
[392579045,1761684655259,-584.89,0.00023835,2]
[392579046,1761684655269,-500.0,0.00023835,2]
[392579047,1761684655278,-628.80783873,0.00023835,2]
[392579048,1761684655287,-960.71,0.00023835,2]
[392579049,1761684655296,-642.85,0.00023835,2]
[392579050,1761684655306,-500.0,0.00023835,2]
[392579051,1761684655315,-1384.85,0.00023835,2]
[392579052,1761684655324,-1494.95,0.00023835,2]
[392579053,1761684655334,-526.78,0.00023835,2]
[392579054,1761684655343,-921.96,0.00023835,2]
[392579055,1761684655352,-830.95,0.00023835,2]
[392579056,1761684655362,-500.0,0.00023835,2]
[392579057,1761684655371,-1687.31,0.00023835,2]
[392579058,1761684655380,-500.0,0.00023835,2]
[392579059,1761684655389,-953.15,0.00023835,2]
[392579060,1761684655399,-2031.7,0.00023835,2]
[392579061,1761684655409,-746.41,0.00023835,2]
[392579062,1761684655420,-1324.25,0.00023835,2]
[392579063,1761684655429,-500.0,0.00023835,2]
[392579064,1761684655440,-920.67,0.00023835,2]
[392579065,1761684655449,-1110.59,0.00023835,2]
[392579066,1761684655460,-500.0,0.00023835,2]
[392579067,1761684655469,-500.0,0.00023835,2]
[392579068,1761684655479,-500.0,0.00023835,2]
[392579069,1761684655489,-996.9,0.00023835,2]
[392579070,1761684655498,-1509.24,0.00023835,2]
[392579071,1761684655507,-555.99,0.00023835,2]
[392579072,1761684655522,-500.0,0.00023835,2]
[392579073,1761684655532,-1004.61,0.00023835,2]
[392579074,1761684655541,-669.33,0.00023835,2]
[392579075,1761684655550,-500.0,0.00023835,2]
[392579076,1761684655561,-597.66,0.00023835,2]
[392579077,1761684655570,-522.76,0.00023835,2]
[392579078,1761684655580,-668.12,0.00023835,2]
[392579079,1761684655600,-500.0,0.00023835,2]
[392579080,1761684655610,-966.05,0.00023835,2]
[392579081,1761684655619,-500.0,0.00023835,2]
[392579082,1761684655629,-500.0,0.00023836,2]
[392579083,1761684655638,-500.0,0.00023854,2]
[392579084,1761684655647,-22615.17392204,0.0002387,7]
[392579085,1761684655656,-500.0,0.00023878,2]
[392579086,1761684655666,-7824.31848685,0.000239,2]
[392579087,1761684655675,-500.0,0.00023934,2]
[392579088,1761684655688,-4869.0,0.00024,7]
[392579089,1761684655697,-33706.98746408,0.00024,60]
[392579090,1761684656027,-1455.878,0.00024,60]
[392579091,1761684656069,-14286.27408365,0.00024,60]
[392579092,1761684656079,-1719.9129982,0.00024,2]
[392579093,1761684656088,-164.1849552,0.00024,2]
[392579094,1761684656097,-461.32071339,0.00024,2]
[392579095,1761684656106,-9620.22374983,0.00024,30]
[392579096,1761684656117,-39637.47971471,0.00024,30]
[392579097,1761684656128,-151.0,0.00024,10]
[392579098,1761684656137,-151.0,0.00024,10]
[392579099,1761684656147,-500.0,0.00024016,2]
[392579100,1761684656156,-700.0,0.00024043,2]
[392579101,1761684656166,-168.0,0.00024065,2]
[392579102,1761684656175,-160.0,0.00024071,4]
[392579103,1761684656185,-161.33563557,0.00024071,5]
[392579104,1761684656195,-700.0,0.00024092,2]
[392579105,1761684656205,-151.0,0.000241,7]
[392579106,1761684656215,-540.46,0.00024109,2]
[392579107,1761684656225,-500.0,0.00024109,2]
[392579108,1761684656233,-500.0,0.00024109,2]
[392579109,1761684656243,-240.21635181,0.00024109,2]
[392579110,1761684656254,-575.48,0.00024109,2]
[392579111,1761684656263,-500.0,0.00024109,2]
[392579112,1761684656273,-500.0,0.00024109,2]
[392579113,1761684656283,-500.0,0.00024109,2]
[392579114,1761684656293,-500.0,0.00024109,2]
[392579115,1761684656302,-500.0,0.00024109,2]
[392579116,1761684656312,-500.0,0.00024109,2]
[392579117,1761684656321,-500.0,0.00024109,2]
[392579118,1761684656331,-500.0,0.00024109,2]
[392579119,1761684656340,-500.0,0.00024109,2]
[392579120,1761684656350,-500.0,0.00024109,2]
[392579121,1761684656359,-594.14,0.00024109,2]
[392579122,1761684656369,-500.0,0.00024109,2]
[392579123,1761684656378,-500.0,0.00024109,2]
[392579124,1761684656388,-648.27,0.00024109,2]
[392579125,1761684656398,-2433.62,0.00024109,2]
[392579126,1761684656408,-333.0220894,0.00024109,2]
[392579127,1761684656419,-500.0,0.00024109,2]
[392579128,1761684656428,-500.0,0.00024109,2]
[392579129,1761684656438,-500.0,0.00024109,2]
[392579130,1761684656448,-500.0,0.00024109,2]
[392579131,1761684656458,-500.0,0.00024109,2]
[392579132,1761684656467,-500.0,0.00024109,2]
[392579133,1761684656476,-500.0,0.00024109,2]
[392579134,1761684656486,-500.0,0.00024109,2]
[392579135,1761684656495,-500.0,0.00024109,2]
[392579136,1761684656505,-940.28,0.00024109,2]
[392579137,1761684656518,-500.0,0.00024109,2]
[392579138,1761684656528,-500.0,0.00024109,2]
[392579139,1761684656537,-580.44,0.00024109,2]
[392579140,1761684656549,-323.16,0.00024109,2]
[392579141,1761684656559,-323.16,0.00024109,2]
[392579142,1761684656569,-323.16,0.00024109,2]
[392579143,1761684656578,-323.16,0.00024109,2]
[392579144,1761684656590,-323.16,0.00024109,2]
[392579145,1761684656600,-323.16,0.00024109,2]
[392579146,1761684656609,-323.16,0.00024109,2]
[392579147,1761684656619,-323.16,0.00024109,2]
[392579148,1761684656628,-323.16,0.00024109,2]
[392579149,1761684656637,-430.25172075,0.00024109,2]
[392579150,1761684656647,-500.0,0.00024109,2]
[392579151,1761684656657,-500.0,0.00024109,2]
[392579152,1761684656667,-500.0,0.00024109,2]
[392579153,1761684656676,-500.0,0.00024109,2]
[392579154,1761684656686,-500.0,0.00024109,2]
[392579155,1761684656695,-500.0,0.00024109,2]
[392579156,1761684656704,-728.95,0.00024109,2]
[392579157,1761684656715,-500.0,0.00024109,2]
[392579158,1761684656724,-500.0,0.00024109,2]
[392579159,1761684656734,-500.0,0.00024109,2]
[392579160,1761684656743,-500.0,0.00024109,2]
[392579161,1761684656752,-500.0,0.00024109,2]
[392579162,1761684656762,-500.0,0.00024109,2]
[392579163,1761684656772,-500.0,0.00024109,2]
[392579164,1761684656781,-557.52,0.00024109,2]
[392579165,1761684656791,-500.0,0.00024109,2]
[392579166,1761684656802,-502.08,0.00024109,2]
[392579167,1761684656814,-500.0,0.00024109,2]
[392579168,1761684656823,-500.0,0.00024109,2]
[392579169,1761684656833,-500.0,0.00024109,2]
[392579170,1761684656842,-500.0,0.00024109,2]
[392579171,1761684656853,-500.0,0.00024109,2]
[392579172,1761684656862,-500.0,0.00024109,2]
[392579173,1761684656872,-628.01,0.00024109,2]
[392579174,1761684656881,-793.46,0.00024109,2]
[392579175,1761684656890,-500.0,0.00024109,2]
[392579176,1761684656902,-500.0,0.00024109,2]
[392579177,1761684656915,-667.98,0.00024109,2]
[392579178,1761684656924,-896.12,0.00024109,2]
[392579179,1761684656933,-500.0,0.00024109,2]
[392579180,1761684656943,-500.0,0.00024109,2]
[392579181,1761684656953,-354.32934416,0.00024109,2]
[392579182,1761684656963,-515.05,0.00024109,2]
[392579183,1761684656973,-500.0,0.00024109,2]
[392579184,1761684656983,-536.02,0.00024109,2]
[392579185,1761684656992,-513.34,0.00024109,2]
[392579186,1761684657002,-500.0,0.00024109,2]
[392579187,1761684657011,-500.0,0.00024109,2]
[392579188,1761684657020,-500.0,0.00024109,2]
[392579189,1761684657030,-500.0,0.00024109,2]
[392579190,1761684657039,-500.0,0.00024109,2]
[392579191,1761684657048,-500.0,0.00024109,2]
[392579192,1761684657058,-500.0,0.00024109,2]
[392579193,1761684657067,-500.0,0.00024109,2]
[392579194,1761684657076,-624.67,0.00024109,2]
[392579195,1761684657086,-500.0,0.00024109,2]
[392579196,1761684657095,-854.24,0.00024109,2]
[392579197,1761684657104,-500.0,0.00024109,2]
[392579198,1761684657115,-995.13,0.00024109,2]
[392579199,1761684657124,-2418.13,0.00024109,2]
[392579200,1761684657133,-500.0,0.00024109,2]
[392579201,1761684657142,-500.0,0.00024109,2]
[392579202,1761684657151,-500.0,0.00024109,2]
[392579203,1761684657161,-500.0,0.00024109,2]
[392579204,1761684657171,-726.0,0.00024109,2]
[392579205,1761684657181,-509.83,0.00024109,2]
[392579206,1761684657190,-696.15,0.00024109,2]
[392579207,1761684657200,-500.0,0.00024109,2]
[392579208,1761684657209,-500.0,0.00024109,2]
[392579209,1761684657218,-500.0,0.00024109,2]
[392579210,1761684657228,-1006.51,0.00024109,2]
[392579211,1761684657237,-812.22,0.00024109,2]
[392579212,1761684657247,-500.0,0.00024109,2]
[392579213,1761684657257,-591.11,0.00024109,2]
[392579214,1761684657267,-500.0,0.00024109,2]
[392579215,1761684657277,-500.0,0.00024109,2]
[392579216,1761684657286,-1144.75,0.00024109,2]
[392579217,1761684657296,-500.0,0.00024109,2]
[392579218,1761684657305,-677.49,0.00024109,2]
[392579219,1761684657315,-209.37131201,0.00024109,2]
[392579220,1761684657324,-878.79,0.00024109,2]
[392579221,1761684657334,-554.59,0.00024109,2]
[392579222,1761684657343,-826.78,0.00024109,2]
[392579223,1761684657353,-775.41,0.00024109,2]
[392579224,1761684657363,-500.0,0.00024109,2]
[392579225,1761684657373,-1677.72,0.00024109,2]
[392579226,1761684657383,-511.98,0.00024109,2]
[392579227,1761684657393,-500.0,0.00024109,2]
[392579228,1761684657403,-500.0,0.00024109,2]